fUSD/lending_fUSD_20260430
["ID","MTS","AMOUNT","RATE_DAILY","PERIOD"]
[421373422,1777516260000,-520.64,0.00042221,120]
[421373423,1777516260000,-1203.92,0.00042221,120]
[421373430,1777516260000,-520.64,0.00042221,120]
[421373425,1777516260000,-1203.92,0.00042221,120]
[421373424,1777516260000,-520.64,0.00042221,120]
[421373428,1777516260000,-520.64,0.00042221,120]
[421373421,1777516260000,-500.02014379,0.00042221,120]
[421373427,1777516260000,-1204.01358659,0.00042221,120]
[421373439,1777516260000,-1542.85,0.00042221,120]
[421373426,1777516260000,-520.64,0.00042221,120]
[421373435,1777516260000,-500.0,0.00042221,90]
[421373436,1777516260000,-1542.85,0.00042221,120]
[421373434,1777516260000,-520.74203413,0.00042221,120]
[421373443,1777516260000,-1542.85,0.00042221,120]
[421373441,1777516260000,-1542.85,0.00042221,120]
[421373431,1777516260000,-520.64,0.00042221,120]
[421373432,1777516260000,-500.0,0.00042221,90]
[421373433,1777516260000,-1542.85,0.00042221,120]
[421373442,1777516260000,-500.0,0.00042221,90]
[421373472,1777516260000,-1542.85,0.00042221,120]
[421373512,1777516261000,-2896.28,0.00042221,120]
[421373516,1777516261000,-2896.28,0.00042221,120]
[421373509,1777516261000,-2896.28,0.00042221,120]
[421373506,1777516261000,-604.00459724,0.00042221,120]
[421373513,1777516261000,-2896.28,0.00042221,120]
[421373510,1777516261000,-510.7642395,0.00042221,120]
[421373517,1777516261000,-2896.28,0.00042221,120]
[421373518,1777516261000,-500.0,0.00042221,14]
[421373507,1777516261000,-2896.28,0.00042221,120]
[421373499,1777516261000,-2896.28,0.00042221,120]
[421373511,1777516261000,-2896.28,0.00042221,120]
[421373508,1777516261000,-2896.28,0.00042221,120]
[421373514,1777516261000,-153.38563473,0.00042221,120]
[421373526,1777516261000,-2237.21,0.00042221,120]
[421373520,1777516261000,-500.0,0.00042221,14]
[421373530,1777516261000,-2237.21,0.00042221,120]
[421373519,1777516261000,-2896.28,0.00042221,120]
[421373521,1777516261000,-2896.28,0.00042221,120]
[421373522,1777516261000,-501.09350552,0.00042221,14]
[421373523,1777516261000,-2896.39777477,0.00042221,120]
[421373527,1777516261000,-278.89013518,0.00042221,120]
[421373524,1777516261000,-170.43285361,0.00042221,120]
[421373528,1777516261000,-2237.21,0.00042221,120]
[421373525,1777516261000,-165.51762498,0.00042221,120]
[421373529,1777516261000,-152.23,0.00042221,120]
[421373497,1777516261000,-2896.28,0.00042221,120]
[421373515,1777516261000,-2896.28,0.00042221,120]
[421373502,1777516261000,-500.0,0.00042221,120]
[421373475,1777516261000,-459.06684121,0.00042221,120]
[421373500,1777516261000,-500.0,0.00042221,120]
[421373533,1777516261000,-2237.21,0.00042221,120]
[421373477,1777516261000,-500.0,0.00042221,120]
[421373476,1777516261000,-1542.85,0.00042221,120]
[421373479,1777516261000,-500.0,0.00042221,120]
[421373478,1777516261000,-1542.85,0.00042221,120]
[421373480,1777516261000,-1542.91830938,0.00042221,120]
[421373481,1777516261000,-500.0,0.00042221,120]
[421373473,1777516261000,-500.0,0.00042221,120]
[421373483,1777516261000,-2896.28,0.00042221,120]
[421373482,1777516261000,-500.0,0.00042221,120]
[421373484,1777516261000,-578.3861668,0.00042221,120]
[421373489,1777516261000,-2896.28,0.00042221,120]
[421373485,1777516261000,-500.0,0.00042221,120]
[421373486,1777516261000,-2896.28,0.00042221,120]
[421373488,1777516261000,-2896.28,0.00042221,120]
[421373487,1777516261000,-500.0,0.00042221,120]
[421373490,1777516261000,-500.0,0.00042221,120]
[421373492,1777516261000,-500.0,0.00042221,120]
[421373491,1777516261000,-2896.28,0.00042221,120]
[421373494,1777516261000,-500.0,0.00042221,120]
[421373505,1777516261000,-2896.28,0.00042221,120]
[421373504,1777516261000,-500.0,0.00042221,120]
[421373496,1777516261000,-500.0,0.00042221,120]
[421373495,1777516261000,-2896.28,0.00042221,120]
[421373493,1777516261000,-2896.28,0.00042221,120]
[421373498,1777516261000,-500.0,0.00042221,120]
[421373503,1777516261000,-2896.28,0.00042221,120]
[421373501,1777516261000,-2896.28,0.00042221,120]
[421373531,1777516261000,-2237.21,0.00042221,120]
[421373474,1777516261000,-1542.85,0.00042221,120]
[421373534,1777516261000,-512.51676883,0.00042221,120]
[421373568,1777516261000,-545.7995066,0.00042221,120]
[421373576,1777516261000,-247.56742144,0.00042221,120]
[421373577,1777516261000,-500.0,0.00042221,120]
[421373578,1777516261000,-152.23,0.00042221,120]
[421373570,1777516261000,-2237.21,0.00042221,120]
[421373569,1777516261000,-2237.21,0.00042221,120]
[421373567,1777516261000,-152.23,0.00042221,120]
[421373571,1777516261000,-2237.21,0.00042221,120]
[421373573,1777516261000,-2237.21,0.00042221,120]
[421373574,1777516261000,-2237.34179052,0.00042221,120]
[421373572,1777516261000,-2237.21,0.00042221,120]
[421373579,1777516261000,-500.0,0.00042221,120]
[421373591,1777516261000,-500.0,0.00042221,120]
[421373581,1777516261000,-203.27432122,0.00042221,120]
[421373580,1777516261000,-500.0,0.00042221,120]
[421373590,1777516261000,-500.0,0.00042221,120]
[421373584,1777516261000,-500.0,0.00042221,120]
[421373582,1777516261000,-172.15401475,0.00042221,120]
[421373583,1777516261000,-1529.9296,0.00042221,120]
[421373585,1777516261000,-500.0,0.00042221,120]
[421373588,1777516261000,-515.67871615,0.00042221,120]
[421373589,1777516261000,-152.23,0.00042221,120]
[421373587,1777516261000,-215.25877834,0.00042221,120]
[421373586,1777516261000,-500.0,0.00042221,120]
[421373593,1777516261000,-500.0,0.00042221,120]
[421373592,1777516261000,-569.57638477,0.00042221,120]
[421373535,1777516261000,-500.0,0.00042221,120]
[421373559,1777516261000,-2237.21,0.00042221,120]
[421373561,1777516261000,-2237.21,0.00042221,120]
[421373575,1777516261000,-500.0,0.00042221,120]
[421373560,1777516261000,-500.0,0.00042221,120]
[421373532,1777516261000,-500.0,0.00042221,120]
[421373558,1777516261000,-500.0,0.00042221,120]
[421373539,1777516261000,-500.0,0.00042221,120]
[421373540,1777516261000,-2237.21,0.00042221,120]
[421373541,1777516261000,-559.25854553,0.00042221,120]
[421373536,1777516261000,-2237.21,0.00042221,120]
[421373538,1777516261000,-242.46442617,0.00042221,120]
[421373543,1777516261000,-500.0,0.00042221,120]
[421373551,1777516261000,-152.23,0.00042221,120]
[421373542,1777516261000,-175.08070959,0.00042221,120]
[421373552,1777516261000,-382.58,0.00042221,120]
[421373544,1777516261000,-2237.21,0.00042221,120]
[421373547,1777516261000,-500.0,0.00042221,120]
[421373554,1777516261000,-2237.21,0.00042221,120]
[421373537,1777516261000,-500.0,0.00042221,120]
[421373545,1777516261000,-500.0,0.00042221,120]
[421373553,1777516261000,-500.0,0.00042221,120]
[421373557,1777516261000,-613.40639968,0.00042221,120]
[421373566,1777516261000,-2237.21,0.00042221,120]
[421373565,1777516261000,-500.0,0.00042221,120]
[421373564,1777516261000,-2237.21,0.00042221,120]
[421373555,1777516261000,-500.0,0.00042221,120]
[421373562,1777516261000,-500.0,0.00042221,120]
[421373563,1777516261000,-2237.21,0.00042221,120]
[421373549,1777516261000,-500.0,0.00042221,120]
[421373548,1777516261000,-2237.21,0.00042221,120]
[421373546,1777516261000,-2237.21,0.00042221,120]
[421373550,1777516261000,-2237.21,0.00042221,120]
[421373556,1777516261000,-2237.21,0.00042221,120]
[421373633,1777516262000,-500.0,0.00042221,30]
[421373638,1777516262000,-500.0,0.00042221,30]
[421373636,1777516262000,-500.0,0.00042221,30]
[421373632,1777516262000,-500.0,0.00042221,30]
[421373623,1777516262000,-1606.96,0.00042221,11]
[421373631,1777516262000,-500.0,0.00042221,30]
[421373640,1777516262000,-500.0,0.00042221,120]
[421373630,1777516262000,-210.05456383,0.00042221,120]
[421373621,1777516262000,-1606.96,0.00042221,11]
[421373622,1777516262000,-512.74831091,0.00042221,120]
[421373635,1777516262000,-2000.0,0.00042221,120]
[421373629,1777516262000,-1607.05987936,0.00042221,11]
[421373637,1777516262000,-895.15,0.00042221,120]
[421373641,1777516262000,-500.0,0.00042221,30]
[421373634,1777516262000,-500.0,0.00042221,30]
[421373642,1777516262000,-500.0,0.00042221,120]
[421373652,1777516262000,-412.61579198,0.00042221,30]
[421373644,1777516262000,-2000.0,0.00042221,120]
[421373643,1777516262000,-500.0,0.00042221,30]
[421373645,1777516262000,-500.0,0.00042221,120]
[421373650,1777516262000,-516.95806805,0.00042221,120]
[421373646,1777516262000,-305.69325607,0.00042221,120]
[421373648,1777516262000,-500.0,0.00042221,30]
[421373647,1777516262000,-417.33915027,0.00042221,120]
[421373649,1777516262000,-500.0,0.00042221,30]
[421373620,1777516262000,-152.27,0.00042221,120]
[421373639,1777516262000,-500.0,0.00042221,120]
[421373626,1777516262000,-1606.96,0.00042221,11]
[421373603,1777516262000,-1606.96,0.00042221,11]
[421373624,1777516262000,-1606.96,0.00042221,11]
[421373651,1777516262000,-195.49143055,0.00042221,120]
[421373602,1777516262000,-1606.96,0.00042221,11]
[421373594,1777516262000,-534.28973056,0.00042221,120]
[421373599,1777516262000,-1606.96,0.00042221,11]
[421373595,1777516262000,-152.23,0.00042221,120]
[421373597,1777516262000,-500.0,0.00042221,120]
[421373601,1777516262000,-1606.96,0.00042221,11]
[421373598,1777516262000,-326.38833709,0.00042221,120]
[421373596,1777516262000,-500.0,0.00042221,120]
[421373600,1777516262000,-1606.96,0.00042221,11]
[421373605,1777516262000,-1606.96,0.00042221,11]
[421373606,1777516262000,-1606.96,0.00042221,11]
[421373609,1777516262000,-1606.96,0.00042221,11]
[421373625,1777516262000,-177.4358922,0.00042221,120]
[421373610,1777516262000,-1606.96,0.00042221,11]
[421373608,1777516262000,-1606.96,0.00042221,11]
[421373607,1777516262000,-152.23,0.00042221,120]
[421373611,1777516262000,-500.0,0.00042221,12]
[421373613,1777516262000,-500.0,0.00042221,12]
[421373614,1777516262000,-1606.96,0.00042221,11]
[421373612,1777516262000,-1606.96,0.00042221,11]
[421373615,1777516262000,-501.90042594,0.00042221,12]
[421373617,1777516262000,-1606.96,0.00042221,11]
[421373628,1777516262000,-1606.96,0.00042221,11]
[421373627,1777516262000,-1606.96,0.00042221,11]
[421373619,1777516262000,-1606.96,0.00042221,11]
[421373616,1777516262000,-1606.96,0.00042221,11]
[421373618,1777516262000,-1606.96,0.00042221,11]
[421373604,1777516262000,-1606.96,0.00042221,11]
[421373653,1777516262000,-1380.4,0.00042221,120]
[421373655,1777516262000,-500.0,0.00042221,120]
[421373654,1777516262000,-500.0,0.00042221,120]
[421373684,1777516262000,-500.0,0.00042221,120]
[421373682,1777516262000,-338.3270389,0.00042221,120]
[421373691,1777516262000,-193.28071177,0.00042221,120]
[421373701,1777516262000,-500.0,0.00042221,120]
[421373690,1777516262000,-514.76939547,0.00042221,120]
[421373692,1777516262000,-500.0,0.00042221,120]
[421373698,1777516262000,-500.0,0.00042221,120]
[421373694,1777516262000,-500.0,0.00042221,120]
[421373695,1777516262000,-500.0,0.00042221,120]
[421373699,1777516262000,-500.0,0.00042221,120]
[421373696,1777516262000,-500.0,0.00042221,120]
[421373700,1777516262000,-450.7323205,0.00042221,120]
[421373693,1777516262000,-186.3603843,0.00042221,120]
[421373697,1777516262000,-305.36219279,0.00042221,120]
[421373702,1777516262000,-605.24022088,0.00042221,120]
[421373705,1777516262000,-514.38102995,0.00042221,120]
[421373704,1777516262000,-321.89756764,0.00042221,120]
[421373706,1777516262000,-207.21391544,0.00042221,120]
[421373707,1777516262000,-500.0,0.00042221,120]
[421373708,1777516262000,-500.0,0.00042221,120]
[421373714,1777516262000,-500.0,0.00042221,120]
[421373712,1777516262000,-500.0,0.00042221,120]
[421373703,1777516262000,-500.0,0.00042221,120]
[421373709,1777516262000,-500.0,0.00042221,120]
[421373713,1777516262000,-500.0,0.00042221,120]
[421373663,1777516262000,-500.0,0.00042221,120]
[421373710,1777516262000,-500.0,0.00042221,120]
[421373681,1777516262000,-339.36216353,0.00042221,120]
[421373687,1777516262000,-500.0,0.00042221,120]
[421373711,1777516262000,-500.0,0.00042221,120]
[421373689,1777516262000,-500.0,0.00042221,120]
[421373685,1777516262000,-555.82361548,0.00042221,120]
[421373658,1777516262000,-500.0,0.00042221,120]
[421373657,1777516262000,-500.0,0.00042221,75]
[421373661,1777516262000,-500.0,0.00042221,75]
[421373660,1777516262000,-500.0,0.00042221,120]
[421373662,1777516262000,-511.88549365,0.00042221,120]
[421373659,1777516262000,-500.0,0.00042221,120]
[421373665,1777516262000,-500.0,0.00042221,120]
[421373675,1777516262000,-435.8,0.00042221,120]
[421373676,1777516262000,-625.63940724,0.00042221,120]
[421373664,1777516262000,-618.2948491,0.00042221,75]
[421373666,1777516262000,-500.0,0.00042221,120]
[421373673,1777516262000,-239.28160663,0.00042221,120]
[421373656,1777516262000,-565.27600306,0.00042221,120]
[421373674,1777516262000,-500.0,0.00042221,120]
[421373671,1777516262000,-500.0,0.00042221,120]
[421373683,1777516262000,-500.0,0.00042221,120]
[421373678,1777516262000,-500.0,0.00042221,120]
[421373688,1777516262000,-500.0,0.00042221,120]
[421373679,1777516262000,-522.22318958,0.00042221,120]
[421373680,1777516262000,-367.48471448,0.00042221,120]
[421373686,1777516262000,-480.02424713,0.00042221,120]
[421373670,1777516262000,-153.07797135,0.00042221,120]
[421373669,1777516262000,-194.24906696,0.00042221,120]
[421373672,1777516262000,-513.0354985,0.00042221,120]
[421373667,1777516262000,-500.0,0.00042221,120]
[421373668,1777516262000,-434.14688104,0.00042221,120]
[421373677,1777516262000,-173.69127453,0.00042221,120]
[421373753,1777516263000,-581.66781569,0.00042221,120]
[421373762,1777516263000,-500.0,0.00042221,120]
[421373760,1777516263000,-500.0,0.00042221,120]
[421373752,1777516263000,-500.0,0.00042221,120]
[421373746,1777516263000,-500.0,0.00042221,120]
[421373742,1777516263000,-500.0,0.00042221,120]
[421373741,1777516263000,-500.0,0.00042221,7]
[421373744,1777516263000,-500.0,0.00042221,7]
[421373751,1777516263000,-500.0,0.00042221,120]
[421373747,1777516263000,-500.0,0.00042221,120]
[421373748,1777516263000,-501.48053184,0.00042221,120]
[421373756,1777516263000,-500.0,0.00042221,120]
[421373754,1777516263000,-229.39859659,0.00042221,120]
[421373757,1777516263000,-500.0,0.00042221,120]
[421373759,1777516263000,-500.0,0.00042221,120]
[421373758,1777516263000,-430.74285186,0.00042221,120]
[421373755,1777516263000,-500.0,0.00042221,120]
[421373763,1777516263000,-500.0,0.00042221,120]
[421373765,1777516263000,-625.3105029,0.00042221,120]
[421373767,1777516263000,-601.51188409,0.00042221,120]
[421373764,1777516263000,-296.51657546,0.00042221,120]
[421373766,1777516263000,-500.0,0.00042221,120]
[421373768,1777516263000,-1292.1,0.00042221,60]
[421373738,1777516263000,-500.0,0.00042221,7]
[421373761,1777516263000,-500.0,0.00042221,120]
[421373745,1777516263000,-500.0,0.00042221,120]
[421373727,1777516263000,-511.31716533,0.00042221,120]
[421373740,1777516263000,-500.0,0.00042221,120]
[421373769,1777516263000,-1292.1,0.00042221,60]
[421373717,1777516263000,-500.0,0.00042221,120]
[421373716,1777516263000,-500.0,0.00042221,120]
[421373715,1777516263000,-500.0,0.00042221,120]
[421373726,1777516263000,-172.02220147,0.00042221,120]
[421373719,1777516263000,-500.0,0.00042221,120]
[421373718,1777516263000,-500.0,0.00042221,120]
[421373722,1777516263000,-500.0,0.00042221,120]
[421373723,1777516263000,-500.0,0.00042221,120]
[421373720,1777516263000,-500.0,0.00042221,120]
[421373724,1777516263000,-500.0,0.00042221,120]
[421373721,1777516263000,-500.0,0.00042221,120]
[421373725,1777516263000,-500.0,0.00042221,120]
[421373728,1777516263000,-500.0,0.00042221,120]
[421373734,1777516263000,-500.0,0.00042221,120]
[421373732,1777516263000,-500.0,0.00042221,120]
[421373736,1777516263000,-500.0,0.00042221,120]
[421373735,1777516263000,-500.0,0.00042221,7]
[421373731,1777516263000,-500.0,0.00042221,120]
[421373733,1777516263000,-500.0,0.00042221,120]
[421373730,1777516263000,-362.76369772,0.00042221,120]
[421373737,1777516263000,-500.0,0.00042221,120]
[421373739,1777516263000,-500.0,0.00042221,120]
[421373750,1777516263000,-593.61809571,0.00042221,7]
[421373749,1777516263000,-500.0,0.00042221,120]
[421373743,1777516263000,-500.0,0.00042221,120]
[421373770,1777516263000,-513.31698758,0.00042221,120]
[421373729,1777516263000,-500.0,0.00042221,120]
[421373773,1777516263000,-1292.1,0.00042221,60]
[421373805,1777516263000,-500.0,0.00042221,120]
[421373803,1777516263000,-500.0,0.00042221,120]
[421373804,1777516263000,-500.0,0.00042221,120]
[421373815,1777516263000,-500.0,0.00042221,120]
[421373807,1777516263000,-500.0,0.00042221,120]
[421373808,1777516263000,-500.0,0.00042221,120]
[421373811,1777516263000,-189.3081182,0.00042221,120]
[421373806,1777516263000,-500.0,0.00042221,120]
[421373810,1777516263000,-524.04621016,0.00042221,120]
[421373822,1777516263000,-500.0,0.00042221,120]
[421373809,1777516263000,-500.0,0.00042221,120]
[421373813,1777516263000,-571.99592475,0.00042221,120]
[421373814,1777516263000,-500.0,0.00042221,120]
[421373817,1777516263000,-500.0,0.00042221,120]
[421373816,1777516263000,-500.0,0.00042221,120]
[421373824,1777516263000,-428.61939142,0.00042221,120]
[421373818,1777516263000,-500.0,0.00042221,120]
[421373825,1777516263000,-500.0,0.00042221,120]
[421373820,1777516263000,-500.0,0.00042221,120]
[421373819,1777516263000,-500.0,0.00042221,120]
[421373821,1777516263000,-500.0,0.00042221,120]
[421373826,1777516263000,-571.08287037,0.00042221,120]
[421373827,1777516263000,-500.0,0.00042221,120]
[421373823,1777516263000,-505.99330431,0.00042221,120]
[421373771,1777516263000,-1292.1,0.00042221,60]
[421373802,1777516263000,-500.0,0.00042221,120]
[421373801,1777516263000,-500.0,0.00042221,120]
[421373812,1777516263000,-500.0,0.00042221,120]
[421373799,1777516263000,-500.0,0.00042221,120]
[421373800,1777516263000,-500.0,0.00042221,120]
[421373774,1777516263000,-513.99765832,0.00042221,120]
[421373775,1777516263000,-500.0,0.00042221,120]
[421373777,1777516263000,-190.79474719,0.00042221,120]
[421373786,1777516263000,-500.0,0.00042221,120]
[421373785,1777516263000,-500.0,0.00042221,120]
[421373778,1777516263000,-500.0,0.00042221,120]
[421373780,1777516263000,-186.19140762,0.00042221,120]
[421373776,1777516263000,-500.0,0.00042221,120]
[421373782,1777516263000,-340.28429436,0.00042221,120]
[421373779,1777516263000,-500.0,0.00042221,120]
[421373783,1777516263000,-503.85778863,0.00042221,120]
[421373784,1777516263000,-500.0,0.00042221,120]
[421373772,1777516263000,-1292.1,0.00042221,60]
[421373796,1777516263000,-500.0,0.00042221,120]
[421373781,1777516263000,-500.0,0.00042221,120]
[421373797,1777516263000,-571.63690083,0.00042221,120]
[421373795,1777516263000,-216.74482688,0.00042221,120]
[421373792,1777516263000,-500.0,0.00042221,120]
[421373794,1777516263000,-500.0,0.00042221,120]
[421373793,1777516263000,-500.0,0.00042221,120]
[421373789,1777516263000,-500.0,0.00042221,120]
[421373790,1777516263000,-500.0,0.00042221,120]
[421373787,1777516263000,-500.0,0.00042221,120]
[421373798,1777516263000,-162.91583427,0.00042221,120]
[421373788,1777516263000,-500.0,0.00042221,120]
[421373791,1777516263000,-285.20951944,0.00042221,120]
[421373876,1777516264000,-500.0,0.00042221,120]
[421373875,1777516264000,-644.19407664,0.00042221,120]
[421373867,1777516264000,-500.0,0.00042221,30]
[421373865,1777516264000,-612.30881185,0.00042221,120]
[421373866,1777516264000,-500.0,0.00042221,120]
[421373859,1777516264000,-505.44990782,0.00042221,120]
[421373864,1777516264000,-281.56711104,0.00042221,31]
[421373853,1777516264000,-500.0,0.00042221,31]
[421373862,1777516264000,-500.0,0.00042221,31]
[421373857,1777516264000,-500.0,0.00042221,120]
[421373871,1777516264000,-521.04999939,0.00042221,120]
[421373863,1777516264000,-513.00234598,0.00042221,120]
[421373868,1777516264000,-509.56351719,0.00042221,120]
[421373879,1777516264000,-500.0,0.00042221,120]
[421373869,1777516264000,-547.34824918,0.00042221,120]
[421373874,1777516264000,-500.0,0.00042221,120]
[421373870,1777516264000,-511.83980004,0.00042221,120]
[421373873,1777516264000,-500.0,0.00042221,120]
[421373877,1777516264000,-242.20935091,0.00042221,120]
[421373881,1777516264000,-500.0,0.00042221,120]
[421373880,1777516264000,-296.36528612,0.00042221,120]
[421373878,1777516264000,-500.0,0.00042221,120]
[421373884,1777516264000,-375.25635825,0.00042221,120]
[421373882,1777516264000,-344.34483053,0.00042221,120]
[421373883,1777516264000,-510.86177286,0.00042221,120]
[421373885,1777516264000,-500.0,0.00042221,120]
[421373872,1777516264000,-177.13867887,0.00042221,120]
[421373860,1777516264000,-500.0,0.00042221,120]
[421373828,1777516264000,-500.0,0.00042221,120]
[421373858,1777516264000,-500.0,0.00042221,31]
[421373889,1777516264000,-500.0,0.00042221,120]
[421373836,1777516264000,-500.0,0.00042221,120]
[421373832,1777516264000,-500.0,0.00042221,120]
[421373839,1777516264000,-500.0,0.00042221,120]
[421373830,1777516264000,-596.6554208,0.00042221,120]
[421373829,1777516264000,-500.0,0.00042221,120]
[421373834,1777516264000,-500.0,0.00042221,120]
[421373833,1777516264000,-500.0,0.00042221,120]
[421373840,1777516264000,-500.0,0.00042221,120]
[421373838,1777516264000,-500.0,0.00042221,120]
[421373835,1777516264000,-330.45143996,0.00042221,120]
[421373831,1777516264000,-500.0,0.00042221,120]
[421373842,1777516264000,-500.0,0.00042221,120]
[421373841,1777516264000,-500.0,0.00042221,120]
[421373850,1777516264000,-515.51947947,0.00042221,120]
[421373848,1777516264000,-500.0,0.00042221,120]
[421373849,1777516264000,-500.0,0.00042221,120]
[421373847,1777516264000,-500.0,0.00042221,120]
[421373844,1777516264000,-500.0,0.00042221,120]
[421373845,1777516264000,-255.3305567,0.00042221,120]
[421373851,1777516264000,-500.0,0.00042221,120]
[421373843,1777516264000,-500.0,0.00042221,120]
[421373846,1777516264000,-225.36933362,0.00042221,120]
[421373852,1777516264000,-500.0,0.00042221,31]
[421373854,1777516264000,-500.0,0.00042221,31]
[421373855,1777516264000,-500.0,0.00042221,31]
[421373856,1777516264000,-500.0,0.00042221,31]
[421373861,1777516264000,-424.17939701,0.00042221,120]
[421373886,1777516264000,-477.675435,0.00042221,120]
[421373837,1777516264000,-500.0,0.00042221,120]
[421373887,1777516264000,-500.0,0.00042221,120]
[421373916,1777516264000,-500.0,0.00042221,120]
[421373922,1777516264000,-500.0,0.00042221,120]
[421373923,1777516264000,-570.77,0.00042221,120]
[421373921,1777516264000,-570.77,0.00042221,120]
[421373924,1777516264000,-500.0,0.00042221,120]
[421373927,1777516264000,-500.0,0.00042221,120]
[421373926,1777516264000,-500.0,0.00042221,120]
[421373928,1777516264000,-570.77,0.00042221,120]
[421373929,1777516264000,-641.27380538,0.00042221,120]
[421373930,1777516264000,-500.0,0.00042221,120]
[421373934,1777516264000,-570.77,0.00042221,120]
[421373932,1777516264000,-336.39145505,0.00042221,120]
[421373937,1777516264000,-570.77,0.00042221,120]
[421373936,1777516264000,-593.09275033,0.00042221,120]
[421373935,1777516264000,-570.77,0.00042221,120]
[421373933,1777516264000,-570.77,0.00042221,120]
[421373939,1777516264000,-570.77,0.00042221,120]
[421373942,1777516264000,-500.0,0.00042221,120]
[421373940,1777516264000,-500.0,0.00042221,120]
[421373938,1777516264000,-500.0,0.00042221,120]
[421373941,1777516264000,-570.77,0.00042221,120]
[421373946,1777516264000,-570.77,0.00042221,120]
[421373943,1777516264000,-570.77,0.00042221,120]
[421373944,1777516264000,-197.17823488,0.00042221,120]
[421373945,1777516264000,-500.0,0.00042221,120]
[421373947,1777516264000,-191.28791822,0.00042221,120]
[421373888,1777516264000,-500.0,0.00042221,120]
[421373917,1777516264000,-500.0,0.00042221,120]
[421373915,1777516264000,-341.90689743,0.00042221,120]
[421373931,1777516264000,-570.77,0.00042221,120]
[421373914,1777516264000,-500.0,0.00042221,120]
[421373890,1777516264000,-509.71275397,0.00042221,120]
[421373925,1777516264000,-570.77,0.00042221,120]
[421373891,1777516264000,-394.1439727,0.00042221,120]
[421373901,1777516264000,-500.0,0.00042221,120]
[421373892,1777516264000,-598.15177578,0.00042221,120]
[421373900,1777516264000,-500.0,0.00042221,120]
[421373899,1777516264000,-283.63086546,0.00042221,120]
[421373894,1777516264000,-500.0,0.00042221,120]
[421373897,1777516264000,-505.91337408,0.00042221,120]
[421373893,1777516264000,-421.51379845,0.00042221,120]
[421373896,1777516264000,-500.0,0.00042221,120]
[421373895,1777516264000,-500.0,0.00042221,120]
[421373902,1777516264000,-500.0,0.00042221,120]
[421373904,1777516264000,-500.0,0.00042221,120]
[421373898,1777516264000,-500.0,0.00042221,120]
[421373919,1777516264000,-636.27429003,0.00042221,120]
[421373905,1777516264000,-508.84285689,0.00042221,120]
[421373918,1777516264000,-500.0,0.00042221,120]
[421373911,1777516264000,-500.0,0.00042221,120]
[421373912,1777516264000,-165.4802945,0.00042221,120]
[421373909,1777516264000,-500.0,0.00042221,120]
[421373908,1777516264000,-500.0,0.00042221,120]
[421373913,1777516264000,-500.0,0.00042221,120]
[421373903,1777516264000,-500.0,0.00042221,120]
[421373907,1777516264000,-500.0,0.00042221,120]
[421373906,1777516264000,-500.0,0.00042221,120]
[421373910,1777516264000,-500.0,0.00042221,120]
[421373920,1777516264000,-500.0,0.00042221,120]
[421373980,1777516265000,-1575.43,0.00042221,120]
[421373987,1777516265000,-1575.43,0.00042221,120]
[421373989,1777516265000,-1575.43,0.00042221,120]
[421373997,1777516265000,-1575.43,0.00042221,120]
[421373988,1777516265000,-539.57271321,0.00042221,120]